[Event "EYCC Open-U12 2019"]
[Site "Bratislava"]
[Date "2019.08.09"]
[Round "8.51"]
[White "Vilimek, Vit"]
[Black "Aasen, Joakim"]
[Result "0-1"]
[ECO "B34"]
[WhiteElo "1523"]
[BlackElo "1718"]
[Annotator "NA"]
[PlyCount "80"]
[EventDate "2019.08.02"]
[EventType "swiss"]
[EventCountry "SVK"]
[SourceTitle "playchess.com"]
[Source "ChessBase"]
[SourceQuality "1"]
[TimeControl "40/5400+30:1800+30"]

1. e4 {[%emt 0:00:00]} c5 {[%emt 0:00:00]} 2. Nf3 {[%emt 0:00:00]} Nc6 {[%emt 0:00:11]} 3. d4 {[%emt 0:00:00]} cxd4 {[%emt 0:00:16]} 4. Nxd4 {[%emt 0:00:00]} g6 {[%emt 0:00:20]} 5. Nc3 {[%emt 0:00:00]} Bg7 {[%emt 0:00:13]} 6. Be3 {[%emt 0:00:02]} Nf6 {[%emt 0:00:36]} 7. f3 {[%emt 0:06:22]} O-O {[%emt 0:00:58]} 8. Qd2 {[%emt 0:01:30]} d5 {[%emt 0:01:01]} 9. O-O-O {[%emt 0:09:41]} Nxd4 {[%emt 0:05:25]} 10. Bxd4 {[%emt 0:00:44]} dxe4 {[%emt 0:01:06]} 11. Bxf6 {[%emt 0:16:28]} Qxd2+ {[%emt 0:03:21]} 12. Rxd2 {[%emt 0:00:24]} exf6 {[%emt 0:01:53]} 13. f4 {[%emt 0:25:04]} f5 {[%emt 0:03:27]} 14. Nd5 {[%emt 0:03:30]} Be6 {[%emt 0:04:07]} 15. Nc7 {[%emt 0:10:15]} Rad8 {[%emt 0:02:52]} 16. Nxe6 {[%emt 0:02:09]} fxe6 {[%emt 0:01:01]} 17. Bc4 {[%emt 0:00:30]} Bxb2+ {[%emt 0:03:53]} 18. Kd1 {[%emt 0:00:37]} Rxd2+ {[%emt 0:00:56]} 19. Kxd2 {[%emt 0:00:09]} Rd8+ {[%emt 0:00:26]} 20. Ke2 {[%emt 0:01:34]} Rd6 {[%emt 0:15:39]} 21. Rd1 {[%emt 0:08:46]} Rc6 {[%emt 0:10:24]} 22. Rd8+ {[%emt 0:02:42]} Kf7 {[%emt 0:01:48]} 23. Bb3 {[%emt 0:00:27]} Rc7 {[%emt 0:01:27]} 24. Rd6 {[%emt 0:09:29]} Re7 {[%emt 0:02:04]} 25. g3 {[%emt 0:01:02]} Ba3 {[%emt 0:01:30]} 26. Rd8 {[%emt 0:00:55]} Bc5 {[%emt 0:01:27]} 27. Rc8 {[%emt 0:00:21]} b6 {[%emt 0:01:38]} 28. Rh8 {[%emt 0:00:30]} Kg7 {[%emt 0:01:34]} 29. Ra8 {[%emt 0:00:11]} Bg1 {[%emt 0:00:39]} 30. h3 {[%emt 0:00:37]} h5 {[%emt 0:03:16]} 31. Kf1 {[%emt 0:00:54]} Be3 {[%emt 0:04:37]} 32. Ke2 {[%emt 0:00:29]} Bc1 {[%emt 0:00:09]} 33. Bc4 {[%emt 0:00:27]} h4 {[%emt 0:02:03]} 34. g4 {[%emt 0:00:37]} fxg4 {[%emt 0:03:13]} 35. hxg4 {[%emt 0:00:12]} h3 {[%emt 0:00:29]} 36. Kf2 {[%emt 0:00:24]} h2 {[%emt 0:00:10]} 37. Kg2 {[%emt 0:00:09]} Bxf4 {[%emt 0:00:08]} 38. Be2 {[%emt 0:00:47]} Rd7 {[%emt 0:00:50]} 39. g5 {[%emt 0:00:46]} e5 {[%emt 0:00:43]} 40. Bg4 {[%emt 0:00:00]} Rc7 {[%emt 0:00:00]} 0-1

[Event "EYCC Open-U12 2019"]
[Site "Bratislava"]
[Date "2019.08.09"]
[Round "8.52"]
[White "Cherniaev, Danil"]
[Black "Gschiel, Alexander"]
[Result "0-1"]
[ECO "A50"]
[WhiteElo "1513"]
[BlackElo "1768"]
[Annotator "NA"]
[PlyCount "76"]
[EventDate "2019.08.02"]
[EventType "swiss"]
[EventCountry "SVK"]
[SourceTitle "playchess.com"]
[Source "ChessBase"]
[SourceQuality "1"]
[TimeControl "40/5400+30:1800+30"]

1. d4 {[%emt 0:00:00]} Nf6 {[%emt 0:00:00]} 2. c4 {[%emt 0:00:00]} c6 {[%emt 0:00:00]} 3. Nc3 {[%emt 0:00:00]} d5 {[%emt 0:00:12]} 4. cxd5 {[%emt 0:00:00]} cxd5 {[%emt 0:00:43]} 5. Bf4 {[%emt 0:01:26]} Qb6 {[%emt 0:01:19]} 6. Qd2 {[%emt 0:02:53]} Nc6 {[%emt 0:04:07]} 7. e3 {[%emt 0:00:10]} Bf5 {[%emt 0:00:48]} 8. Bd3 {[%emt 0:02:27]} Bxd3 {[%emt 0:01:20]} 9. Qxd3 {[%emt 0:00:06]} e6 {[%emt 0:03:05]} 10. Nge2 {[%emt 0:02:45]} Be7 {[%emt 0:03:40]} 11. O-O {[%emt 0:00:15]} O-O {[%emt 0:03:48]} 12. a3 {[%emt 0:02:22]} Na5 {[%emt 0:04:35]} 13. b4 {[%emt 0:00:56]} Nc4 {[%emt 0:01:06]} 14. Na4 {[%emt 0:00:18]} Qb5 {[%emt 0:02:48]} 15. Nec3 {[%emt 0:01:13]} Qd7 {[%emt 0:02:32]} 16. Nc5 {[%emt 0:00:55]} Bxc5 {[%emt 0:01:12]} 17. bxc5 {[%emt 0:00:34]} Nh5 {[%emt 0:02:19]} 18. Bg5 {[%emt 0:02:05]} b6 {[%emt 0:05:29]} 19. Qe2 {[%emt 0:00:34]} g6 {[%emt 0:06:24]} 20. Bh6 {[%emt 0:06:01]} Rfc8 {[%emt 0:01:21]} 21. g4 {[%emt 0:04:10]} Ng7 {[%emt 0:01:52]} 22. e4 {[%emt 0:02:38]} bxc5 {[%emt 0:06:35]} 23. exd5 {[%emt 0:00:18]} exd5 {[%emt 0:00:31]} 24. dxc5 {[%emt 0:01:39]} Rxc5 {[%emt 0:05:24]} 25. Rfd1 {[%emt 0:01:13]} Qe6 {[%emt 0:02:44]} 26. Qf3 {[%emt 0:01:20]} Ne5 {[%emt 0:01:19]} 27. Qe3 {[%emt 0:01:26]} Rac8 {[%emt 0:00:49]} 28. Na4 {[%emt 0:05:01]} Rc4 {[%emt 0:01:51]} 29. Nb2 {[%emt 0:02:03]} Rxg4+ {[%emt 0:00:41]} 30. Kf1 {[%emt 0:00:55]} Nf5 {[%emt 0:01:09]} 31. Qb3 {[%emt 0:00:35]} Nxh6 {[%emt 0:01:14]} 32. Rxd5 {[%emt 0:00:22]} Rd4 {[%emt 0:03:51]} 33. Rd1 {[%emt 0:00:07]} Rxd5 {[%emt 0:00:38]} 34. Rxd5 {[%emt 0:00:10]} Nhg4 {[%emt 0:00:30]} 35. Qd1 {[%emt 0:00:50]} Qf6 {[%emt 0:01:33]} 36. Qe2 {[%emt 0:01:09]} Qg5 {[%emt 0:03:23]} 37. h3 {[%emt 0:00:56]} Nh2+ {[%emt 0:00:07]} 38. Ke1 {[%emt 0:00:09]} Qg1+ {[%emt 0:00:09]} 0-1

[Event "EYCC Open-U12 2019"]
[Site "Bratislava"]
[Date "2019.08.09"]
[Round "8.53"]
[White "Grishin, Petr E."]
[Black "Gudmundsson, Gunnar Erik"]
[Result "1/2-1/2"]
[ECO "A15"]
[WhiteElo "1506"]
[BlackElo "1746"]
[Annotator "NA"]
[PlyCount "97"]
[EventDate "2019.08.02"]
[EventType "swiss"]
[EventCountry "SVK"]
[SourceTitle "playchess.com"]
[Source "ChessBase"]
[SourceQuality "1"]
[TimeControl "40/5400+30:1800+30"]

1. c4 {[%emt 0:00:00]} Nf6 {[%emt 0:00:15]} 2. g3 {[%emt 0:00:00]} e5 {[%emt 0:01:00]} 3. Bg2 {[%emt 0:00:00]} c6 {[%emt 0:00:10]} 4. Nf3 {[%emt 0:00:00]} Qc7 {[%emt 0:06:55]} 5. Nc3 {[%emt 0:01:17]} d5 {[%emt 0:01:09]} 6. cxd5 {[%emt 0:01:52]} cxd5 {[%emt 0:00:14]} 7. d4 {[%emt 0:01:23]} e4 {[%emt 0:03:22]} 8. Ne5 {[%emt 0:00:45]} Bd6 {[%emt 0:03:28]} 9. Bf4 {[%emt 0:04:38]} O-O {[%emt 0:12:09]} 10. O-O {[%emt 0:00:15]} Qe7 {[%emt 0:09:07]} 11. Qb3 {[%emt 0:04:01]} Be6 {[%emt 0:02:07]} 12. Nb5 {[%emt 0:08:19]} Ne8 {[%emt 0:03:42]} 13. Nxd6 {[%emt 0:04:18]} Nxd6 {[%emt 0:00:11]} 14. Qa3 {[%emt 0:01:27]} Rd8 {[%emt 0:03:27]} 15. h3 {[%emt 0:06:27]} h5 {[%emt 0:09:37]} 16. g4 {[%emt 0:04:14]} Qf6 {[%emt 0:09:07]} 17. e3 {[%emt 0:06:42]} hxg4 {[%emt 0:02:07]} 18. hxg4 {[%emt 0:01:14]} a6 {[%emt 0:11:17]} 19. Rac1 {[%emt 0:04:28]} Nb5 {[%emt 0:00:59]} 20. Qb4 {[%emt 0:00:54]} Nd7 {[%emt 0:06:41]} 21. a4 {[%emt 0:01:04]} Na7 {[%emt 0:00:48]} 22. Qxb7 {[%emt 0:01:59]} Nxe5 {[%emt 0:03:42]} 23. Bxe5 {[%emt 0:01:41]} Qg5 {[%emt 0:00:36]} 24. Bc7 {[%emt 0:01:15]} Re8 {[%emt 0:01:37]} 25. Qxa6 {[%emt 0:02:54]} Bxg4 {[%emt 0:00:49]} 26. Bf4 {[%emt 0:00:30]} Qh5 {[%emt 0:00:45]} 27. Rfe1 {[%emt 0:01:50]} Bf3 {[%emt 0:02:55]} 28. Qb7 {[%emt 0:06:13]} Bxg2 {[%emt 0:05:07]} 29. Kxg2 {[%emt 0:00:10]} Qf3+ {[%emt 0:00:05]} 30. Kg1 {[%emt 0:03:29]} Re6 {[%emt 0:00:58]} 31. Qxa8+ {[%emt 0:02:32]} Kh7 {[%emt 0:00:04]} 32. Qb8 {[%emt 0:01:35]} Rg6+ {[%emt 0:00:24]} 33. Bg3 {[%emt 0:00:08]} Rh6 {[%emt 0:00:08]} 34. Bh2 {[%emt 0:00:09]} Rg6+ {[%emt 0:00:27]} 35. Qg3 {[%emt 0:00:43]} Rxg3+ {[%emt 0:00:47]} 36. Bxg3 {[%emt 0:00:06]} Qf6 {[%emt 0:00:18]} 37. Rc7 {[%emt 0:04:10]} Nc6 {[%emt 0:01:00]} 38. Rc1 {[%emt 0:01:12]} Na5 {[%emt 0:00:46]} 39. b4 {[%emt 0:02:33]} Nc4 {[%emt 0:00:34]} 40. a5 {[%emt 0:00:00]} Kg8 {[%emt 0:00:00]} 41. Ra1 {[%emt 0:04:07]} Qa6 {[%emt 0:05:39]} 42. Rc5 {[%emt 0:01:27]} Nd2 {[%emt 0:08:03]} 43. b5 {[%emt 0:03:56]} Qe6 {[%emt 0:04:22]} 44. Kh2 {[%emt 0:15:45]} Qg4 {[%emt 0:08:11]} 45. Rxd5 {[%emt 0:02:36]} f5 {[%emt 0:04:45]} 46. b6 {[%emt 0:03:35]} Qh5+ {[%emt 0:00:15]} 47. Kg2 {[%emt 0:00:12]} Qf3+ {[%emt 0:00:33]} 48. Kg1 {[%emt 0:01:50]} Qh5 {[%emt 0:02:33]} 49. Kg2 1/2-1/2

[Event "EYCC Open-U12 2019"]
[Site "Bratislava"]
[Date "2019.08.09"]
[Round "8.54"]
[White "Snitsarenko, Igor"]
[Black "Prazak, Daniel"]
[Result "1-0"]
[ECO "C17"]
[WhiteElo "1481"]
[BlackElo "1586"]
[Annotator "NA"]
[PlyCount "69"]
[EventDate "2019.08.02"]
[EventType "swiss"]
[EventCountry "SVK"]
[SourceTitle "playchess.com"]
[Source "ChessBase"]
[SourceQuality "1"]
[TimeControl "40/5400+30:1800+30"]

1. e4 e6 2. d4 d5 3. Nc3 Bb4 4. e5 c5 5. a3 Ba5 6. Bd2 cxd4 7. Nb5 Bc7 8. Nf3 Nc6 9. Bf4 Nge7 10. Nbxd4 Nxd4 11. Qxd4 h6 12. Bd3 Nc6 13. Qe3 Bb6 14. Qd2 Qc7 15. h4 Bd7 16. O-O Nd4 17. Nh2 a6 18. Ng4 Nc6 19. Rfe1 h5 20. Ne3 Bxe3 21. Qxe3 Ne7 22. Rac1 b5 23. Qg3 g6 24. Bg5 Bc8 25. Bf6 Rf8 26. b3 Nf5 27. Bxf5 exf5 28. Qd3 Be6 29. a4 Qc5 30. Red1 Rc8 31. c4 bxc4 32. Rxc4 Qxc4 33. bxc4 Rxc4 34. Qa3 Rc7 35. Qd6 1-0

[Event "EYCC Open-U12 2019"]
[Site "Bratislava"]
[Date "2019.08.10"]
[Round "9.1"]
[White "Petrovskiy, Vadim"]
[Black "Maurizzi, Marc Andria"]
[Result "0-1"]
[ECO "C29"]
[WhiteElo "2090"]
[BlackElo "2412"]
[Annotator "NA"]
[PlyCount "98"]
[EventDate "2019.08.02"]
[EventType "swiss"]
[EventCountry "SVK"]
[SourceTitle "playchess.com"]
[Source "ChessBase"]
[SourceQuality "1"]
[TimeControl "40/5400+30:1800+30"]

1. e4 {[%emt 0:00:00]} e5 {[%emt 0:00:00]} 2. Nc3 {[%emt 0:04:02]} Nf6 {[%emt 0:02:14]} 3. f4 {[%emt 0:00:14]} d5 {[%emt 0:00:49]} 4. exd5 {[%emt 0:00:12]} exf4 {[%emt 0:00:15]} 5. Bc4 {[%emt 0:00:27]} Bd6 {[%emt 0:01:43]} 6. Qe2+ {[%emt 0:03:24]} Qe7 {[%emt 0:07:54]} 7. d3 {[%emt 0:02:49]} Bg4 {[%emt 0:06:34]} 8. Nf3 {[%emt 0:05:02]} Bxf3 {[%emt 0:02:42]} 9. Qxe7+ {[%emt 0:01:11]} Kxe7 {[%emt 0:00:08]} 10. gxf3 {[%emt 0:00:07]} Nbd7 {[%emt 0:01:39]} 11. Nb5 {[%emt 0:02:33]} g5 {[%emt 0:04:46]} 12. Bb3 {[%emt 0:02:25]} Nc5 {[%emt 0:13:32]} 13. d4 {[%emt 0:05:09]} Nxb3 {[%emt 0:00:03]} 14. axb3 {[%emt 0:00:10]} Nxd5 {[%emt 0:01:12]} 15. c4 {[%emt 0:05:41]} Nb4 {[%emt 0:03:34]} 16. Ke2 {[%emt 0:00:33]} a6 {[%emt 0:04:37]} 17. Nxd6 {[%emt 0:01:10]} Kxd6 {[%emt 0:00:07]} 18. Ra5 {[%emt 0:01:15]} b5 {[%emt 0:07:34]} 19. cxb5 {[%emt 0:04:28]} Rhe8+ {[%emt 0:00:26]} 20. Kd2 {[%emt 0:01:42]} axb5 {[%emt 0:04:07]} 21. Rxb5 {[%emt 0:00:05]} Nd5 {[%emt 0:00:05]} 22. h4 {[%emt 0:02:36]} h6 {[%emt 0:01:21]} 23. hxg5 {[%emt 0:07:43]} hxg5 {[%emt 0:00:01]} 24. Kd3 {[%emt 0:00:29]} Rh8 {[%emt 0:03:40]} 25. Rxh8 {[%emt 0:00:57]} Rxh8 {[%emt 0:00:02]} 26. Ke4 {[%emt 0:01:55]} c6 {[%emt 0:01:11]} 27. Rc5 {[%emt 0:04:01]} Rb8 {[%emt 0:02:18]} 28. Bd2 {[%emt 0:05:36]} Rxb3 {[%emt 0:00:16]} 29. Bc3 {[%emt 0:00:09]} f6 {[%emt 0:01:36]} 30. Kf5 {[%emt 0:00:25]} Rb8 {[%emt 0:02:06]} 31. Ra5 {[%emt 0:02:17]} Ne3+ {[%emt 0:15:10]} 32. Kxf6 {[%emt 0:05:56]} g4 {[%emt 0:00:04]} 33. d5 {[%emt 0:09:35]} Nxd5+ {[%emt 0:02:34]} 34. Kf5 {[%emt 0:00:10]} Nxc3 {[%emt 0:01:05]} 35. bxc3 {[%emt 0:00:11]} gxf3 {[%emt 0:00:29]} 36. Ra2 {[%emt 0:00:21]} Rb3 {[%emt 0:00:53]} 37. c4 {[%emt 0:00:45]} Kc5 {[%emt 0:00:21]} 38. Kxf4 {[%emt 0:00:08]} Kxc4 {[%emt 0:00:11]} 39. Rc2+ {[%emt 0:00:07]} Kb5 {[%emt 0:00:37]} 40. Ke4 {[%emt 0:00:00]} c5 {[%emt 0:00:00]} 41. Kd5 {[%emt 0:00:17]} c4 {[%emt 0:01:16]} 42. Kd4 {[%emt 0:00:16]} Rd3+ {[%emt 0:00:08]} 43. Ke4 {[%emt 0:00:04]} Kb4 {[%emt 0:00:15]} 44. Rc1 {[%emt 0:00:33]} f2 {[%emt 0:01:05]} 45. Rb1+ {[%emt 0:00:25]} Rb3 {[%emt 0:00:17]} 46. Rf1 {[%emt 0:00:07]} Rb2 {[%emt 0:00:05]} 47. Ke3 {[%emt 0:00:05]} Kb3 {[%emt 0:00:16]} 48. Rh1 {[%emt 0:00:10]} c3 {[%emt 0:00:09]} 49. Rf1 {[%emt 0:00:03]} c2 {[%emt 0:00:44]} 0-1

[Event "EYCC Open-U12 2019"]
[Site "Bratislava"]
[Date "2019.08.10"]
[Round "9.2"]
[White "Tobak, Mikhail"]
[Black "Piliposyan, Robert"]
[Result "0-1"]
[ECO "B10"]
[WhiteElo "1943"]
[BlackElo "2156"]
[Annotator "NA"]
[PlyCount "122"]
[EventDate "2019.08.02"]
[EventType "swiss"]
[EventCountry "SVK"]
[SourceTitle "playchess.com"]
[Source "ChessBase"]
[SourceQuality "1"]
[TimeControl "40/5400+30:1800+30"]

1. e4 {[%emt 0:00:00]} c6 {[%emt 0:00:00]} 2. d3 {[%emt 0:00:00]} d5 {[%emt 0:00:00]} 3. Nd2 {[%emt 0:00:00]} g6 {[%emt 0:01:04]} 4. g3 {[%emt 0:00:09]} Bg7 {[%emt 0:00:05]} 5. Bg2 {[%emt 0:00:04]} e5 {[%emt 0:01:17]} 6. Ngf3 {[%emt 0:00:55]} Ne7 {[%emt 0:00:08]} 7. O-O {[%emt 0:01:02]} O-O {[%emt 0:00:05]} 8. Re1 {[%emt 0:02:23]} Qc7 {[%emt 0:00:45]} 9. Qe2 {[%emt 0:01:13]} d4 {[%emt 0:06:58]} 10. Rf1 {[%emt 0:08:12]} c5 {[%emt 0:09:14]} 11. a4 {[%emt 0:04:59]} Nbc6 {[%emt 0:04:25]} 12. Nc4 {[%emt 0:00:56]} b6 {[%emt 0:21:01]} 13. Nh4 {[%emt 0:04:55]} Be6 {[%emt 0:05:11]} 14. f4 {[%emt 0:06:34]} exf4 {[%emt 0:02:13]} 15. gxf4 {[%emt 0:08:08]} Bf6 {[%emt 0:07:00]} 16. Qf2 {[%emt 0:08:09]} Bxc4 {[%emt 0:02:41]} 17. dxc4 {[%emt 0:00:06]} Rad8 {[%emt 0:00:21]} 18. Ra3 {[%emt 0:07:04]} Na5 {[%emt 0:02:09]} 19. Rh3 {[%emt 0:05:05]} Nxc4 {[%emt 0:04:58]} 20. e5 {[%emt 0:04:05]} Bg7 {[%emt 0:00:47]} 21. b3 {[%emt 0:01:16]} Ne3 {[%emt 0:00:16]} 22. Bxe3 {[%emt 0:02:35]} dxe3 {[%emt 0:00:02]} 23. Rxe3 {[%emt 0:05:12]} f6 {[%emt 0:01:12]} 24. Qe1 {[%emt 0:03:51]} fxe5 {[%emt 0:00:40]} 25. fxe5 {[%emt 0:00:06]} Rxf1+ {[%emt 0:00:06]} 26. Bxf1 {[%emt 0:01:07]} Qd7 {[%emt 0:05:19]} 27. Bh3 {[%emt 0:10:11]} Qd4 {[%emt 0:04:22]} 28. Nf3 {[%emt 0:00:19]} Qf4 {[%emt 0:00:16]} 29. Kg2 {[%emt 0:01:25]} h6 {[%emt 0:10:19]} 30. Be6+ {[%emt 0:01:23]} Kh8 {[%emt 0:00:59]} 31. Re4 Qf8 {[%emt 0:00:45]} 32. Qe3 {[%emt 0:04:13]} Nc6 {[%emt 0:05:29]} 33. Bc4 {[%emt 0:04:23]} Ne7 {[%emt 0:01:43]} 34. Be6 {[%emt 0:00:59]} Nc6 {[%emt 0:00:10]} 35. Bh3 {[%emt 0:01:47]} Qe7 {[%emt 0:00:54]} 36. e6 {[%emt 0:01:42]} Kh7 {[%emt 0:02:08]} 37. Rg4 {[%emt 0:00:52]} Qf6 {[%emt 0:00:33]} 38. Qe4 {[%emt 0:01:05]} Ne7 {[%emt 0:02:33]} 39. Rf4 {[%emt 0:00:17]} Qc3 {[%emt 0:00:22]} 40. Rf7 {[%emt 0:00:00]} Re8 {[%emt 0:00:00]} 41. Qb7 {[%emt 0:07:59]} Nf5 {[%emt 0:08:42]} 42. Bxf5 {[%emt 0:08:51]} gxf5 {[%emt 0:00:22]} 43. Qd7 {[%emt 0:04:26]} Qxc2+ {[%emt 0:01:29]} 44. Nd2 {[%emt 0:01:45]} Qb2 {[%emt 0:04:38]} 45. Rxf5 {[%emt 0:08:51]} Rxe6 {[%emt 0:00:55]} 46. Qxe6 {[%emt 0:00:20]} Qxd2+ {[%emt 0:00:01]} 47. Rf2 {[%emt 0:00:34]} Qg5+ {[%emt 0:00:11]} 48. Kf1 {[%emt 0:00:25]} Qc1+ {[%emt 0:00:39]} 49. Qe1 {[%emt 0:00:13]} Qa3 {[%emt 0:04:41]} 50. Qb1+ {[%emt 0:00:30]} Kg8 {[%emt 0:01:56]} 51. Rf4 {[%emt 0:00:14]} a6 {[%emt 0:01:08]} 52. Re4 {[%emt 0:01:18]} Kf7 {[%emt 0:01:59]} 53. Qd1 {[%emt 0:00:43]} Qa1 {[%emt 0:01:02]} 54. Qxa1 {[%emt 0:00:33]} Bxa1 {[%emt 0:00:02]} 55. Ke2 {[%emt 0:01:30]} b5 {[%emt 0:00:23]} 56. Rf4+ {[%emt 0:00:42]} Kg6 {[%emt 0:01:27]} 57. Kd3 {[%emt 0:00:17]} Be5 {[%emt 0:00:38]} 58. Rf2 {[%emt 0:00:05]} Bc7 {[%emt 0:02:44]} 59. Ke4 {[%emt 0:00:45]} bxa4 {[%emt 0:00:15]} 60. bxa4 {[%emt 0:00:10]} Ba5 {[%emt 0:01:36]} 61. Ra2 {[%emt 0:02:35]} c4 {[%emt 0:01:09]} 0-1

[Event "EYCC Open-U12 2019"]
[Site "Bratislava"]
[Date "2019.08.10"]
[Round "9.3"]
[White "Vagman, Roy"]
[Black "Han, Yichen"]
[Result "1-0"]
[ECO "B23"]
[WhiteElo "1941"]
[BlackElo "2217"]
[Annotator "NA"]
[PlyCount "149"]
[EventDate "2019.08.02"]
[EventType "swiss"]
[EventCountry "SVK"]
[SourceTitle "playchess.com"]
[Source "ChessBase"]
[SourceQuality "1"]
[TimeControl "40/5400+30:1800+30"]

1. e4 {[%emt 0:00:00]} c5 {[%emt 0:00:00]} 2. Nc3 {[%emt 0:00:13]} d6 {[%emt 0:00:00]} 3. d4 {[%emt 0:00:47]} cxd4 {[%emt 0:00:00]} 4. Qxd4 {[%emt 0:00:22]} Nc6 {[%emt 0:00:00]} 5. Qd2 {[%emt 0:00:39]} Nf6 {[%emt 0:01:26]} 6. b3 {[%emt 0:00:44]} e6 {[%emt 0:00:58]} 7. Bb2 {[%emt 0:01:32]} Be7 {[%emt 0:00:43]} 8. O-O-O {[%emt 0:01:00]} O-O {[%emt 0:00:49]} 9. Kb1 {[%emt 0:00:34]} a6 {[%emt 0:01:16]} 10. f3 {[%emt 0:01:14]} b5 {[%emt 0:16:16]} 11. g4 {[%emt 0:01:31]} b4 {[%emt 0:03:23]} 12. Nce2 {[%emt 0:06:03]} Qa5 {[%emt 0:04:23]} 13. Nf4 {[%emt 0:03:38]} Rd8 {[%emt 0:04:18]} 14. h4 {[%emt 0:09:28]} d5 {[%emt 0:07:15]} 15. e5 {[%emt 0:10:11]} Nd7 {[%emt 0:00:30]} 16. Nh5 {[%emt 0:08:35]} d4 {[%emt 0:04:39]} 17. f4 {[%emt 0:03:59]} Bb7 {[%emt 0:02:06]} 18. Rh3 {[%emt 0:02:48]} Nb6 {[%emt 0:03:26]} 19. Bg2 {[%emt 0:06:07]} Nd5 {[%emt 0:04:04]} 20. Bxd5 {[%emt 0:00:50]} Rxd5 {[%emt 0:00:22]} 21. Nf3 {[%emt 0:05:36]} Rad8 {[%emt 0:04:06]} 22. Qd3 {[%emt 0:02:09]} Na7 {[%emt 0:02:09]} 23. Ng5 {[%emt 0:15:47]} g6 {[%emt 0:02:02]} 24. Nxh7 {[%emt 0:01:06]} Nb5 {[%emt 0:04:08]} 25. N5f6+ {[%emt 0:00:42]} Kg7 {[%emt 0:00:34]} 26. Nxd5 {[%emt 0:10:52]} Rxd5 {[%emt 0:00:07]} 27. Nf6 {[%emt 0:00:56]} Bxf6 {[%emt 0:06:57]} 28. exf6+ {[%emt 0:00:04]} Kxf6 {[%emt 0:00:07]} 29. Qd2 {[%emt 0:02:48]} Nc3+ {[%emt 0:02:57]} 30. Bxc3 {[%emt 0:00:36]} bxc3 {[%emt 0:00:12]} 31. Qc1 {[%emt 0:00:51]} Qc5 {[%emt 0:00:59]} 32. a4 {[%emt 0:00:54]} Bc6 {[%emt 0:01:11]} 33. Ka2 {[%emt 0:02:16]} Qb6 {[%emt 0:02:46]} 34. f5 {[%emt 0:00:57]} Bxa4 {[%emt 0:02:07]} 35. g5+ {[%emt 0:00:37]} Kg7 {[%emt 0:00:41]} 36. f6+ {[%emt 0:00:03]} Kg8 {[%emt 0:00:07]} 37. bxa4 {[%emt 0:00:43]} Ra5 {[%emt 0:00:08]} 38. Ka3 {[%emt 0:01:07]} Qc5+ {[%emt 0:03:47]} 39. Kb3 {[%emt 0:00:08]} Qd5+ {[%emt 0:00:26]} 40. Kb4 {[%emt 0:00:00]} Rc5 {[%emt 0:00:00]} 41. Ka3 {[%emt 0:09:13]} Rc4 {[%emt 0:05:24]} 42. Kb3 {[%emt 0:03:04]} a5 {[%emt 0:04:27]} 43. Rxc3 {[%emt 0:12:22]} Rxc3+ {[%emt 0:00:29]} 44. Kb2 {[%emt 0:00:09]} Qc5 {[%emt 0:03:28]} 45. Kb1 {[%emt 0:00:40]} Rc4 {[%emt 0:02:19]} 46. Rd3 {[%emt 0:00:47]} Rb4+ {[%emt 0:00:53]} 47. Rb3 {[%emt 0:00:41]} d3 {[%emt 0:02:34]} 48. Qd2 {[%emt 0:03:19]} Rxb3+ {[%emt 0:03:25]} 49. cxb3 {[%emt 0:00:11]} Qd5 {[%emt 0:00:10]} 50. Kb2 {[%emt 0:01:28]} e5 {[%emt 0:00:11]} 51. Qc3 {[%emt 0:01:14]} Kh7 {[%emt 0:06:50]} 52. Qc8 {[%emt 0:01:14]} Qd4+ {[%emt 0:01:16]} 53. Ka2 {[%emt 0:01:01]} Qf2+ {[%emt 0:01:25]} 54. Ka3 {[%emt 0:00:40]} Qe1 {[%emt 0:00:31]} 55. Ka2 {[%emt 0:00:23]} Qd2+ {[%emt 0:01:12]} 56. Ka3 {[%emt 0:00:46]} Qb4+ {[%emt 0:02:10]} 57. Kb2 {[%emt 0:00:17]} d2 {[%emt 0:02:46]} 58. Qd7 {[%emt 0:00:43]} d1=N+ {[%emt 0:00:55]} 59. Qxd1 {[%emt 0:00:11]} Qxh4 {[%emt 0:00:11]} 60. Qd5 {[%emt 0:00:53]} Qxg5 {[%emt 0:01:34]} 61. Qxf7+ {[%emt 0:00:25]} Kh6 {[%emt 0:00:04]} 62. Qf8+ {[%emt 0:00:51]} Kh5 {[%emt 0:00:11]} 63. Qh8+ {[%emt 0:00:14]} Kg4 {[%emt 0:00:08]} 64. Qc8+ {[%emt 0:00:18]} Kh4 {[%emt 0:01:07]} 65. f7 {[%emt 0:01:06]} Qd2+ {[%emt 0:00:26]} 66. Qc2 {[%emt 0:00:08]} Qd4+ {[%emt 0:00:15]} 67. Ka2 {[%emt 0:00:52]} Qf4 {[%emt 0:00:34]} 68. Qxg6 {[%emt 0:01:30]} Qf2+ {[%emt 0:00:58]} 69. Ka3 {[%emt 0:00:18]} Qc5+ {[%emt 0:00:24]} 70. Kb2 {[%emt 0:00:08]} Qf2+ {[%emt 0:00:42]} 71. Qc2 {[%emt 0:00:26]} Qxf7 {[%emt 0:00:35]} 72. Qh2+ {[%emt 0:00:03]} Kg4 {[%emt 0:00:27]} 73. Qxe5 {[%emt 0:00:41]} Qa7 {[%emt 0:00:09]} 74. Kc3 {[%emt 0:00:30]} Qf2 {[%emt 0:01:49]} 75. Qd4+ {[%emt 0:00:12]} 1-0